Cogmind - Beta 13 @@@ ROGUE MODE // 2024.05.19 @ 02:00:43 Player: FlyingLemon Result: Destroyed by B-90 Cyclops with Nova Cannon Performance ------------- Evolutions (8) 4000 Regions Visited (16) 3200 Robots Destroyed (52) 260 Value Destroyed (1740) 1740 Prototype IDs (36) 720 Alien Tech Used (2) 400 Bonus (800) 800 TOTAL SCORE: 11120 Bonus ------- Follower Combat Kills 200 Aligned with FarCom 300 Met Zhirov 300 Cogmind --------- Core Integrity 0/1450 Matter 41/300 Energy 100/100 System Corruption 10% Temperature Cool (9) Movement Core (50) Location -2/Research Parts ------- > --- POWER (2) -------- (None) > --- PROPULSION (9) --- (None) > --- UTILITY (10) ----- Advanced Terrain Scan Processor Advanced System Shield > --- WEAPON (2) ------- (None) > --- INVENTORY (5) ---- Combat Antigrav System Advanced Weight Redist. System Improved Light Armor Plating Advanced Force Field Peak State ------------ > --- POWER ------------ Hybrid Deuterium Engine Fusion Reactor > --- PROPULSION ------- Cooled Nuclear Pulse Thruster Cooled Nuclear Pulse Thruster Cooled Nuclear Pulse Thruster Flying Fortress v7 Impulse Thruster Array > --- UTILITY ---------- High-capacity Storage Unit Improved Trap Scanner Advanced Terrain Scan Processor Advanced ECM Suite Improved Reaction Control System Cloaking Device Cloaking Device Hacking Suite Advanced System Shield > --- WEAPON ----------- Flak Gun Heavy Pick > --- INVENTORY -------- Improved Fusion Compressor Micro Antimatter Reactor Centrium Leg Combat Antigrav System Combat Antigrav System Antigrav Array Improved VTOL Module High-capacity Matter Pod Advanced Weight Redist. System Improved Light Armor Plating Improved Light Armor Plating Powered Armor Advanced Force Field Transdimensional Reconstructor High-powered Shotgun Improved Proton Missile Launcher Signal Generator [Rating: 137] Favorites ----------- Power Hybrid Deuterium Engine Engine Hybrid Deuterium Engine Power Core Improved Fusion Compressor Reactor Fusion Reactor Propulsion Light Treads Treads Light Treads Wheel Armored Wheel Hover Unit Combat Antigrav System Flight Unit Flying Fortress v7 Utility High-capacity Storage Unit Device Cloaking Device Storage High-capacity Storage Unit Processor Improved Signal Interpreter Hackware Hacking Suite Protection Core Shielding Weapon Shotgun Ballistic Gun Shotgun Launcher Improved Proton Missile Launcher Slashing Weapon Greatsword Piercing Weapon Heavy Pick Build | -11 -10 -9 -9 -9 -8 -8 -7 -6 -5 -5 -5 -5 -4 -4 -3 -2 ------- Run | Yrd Mat Mat Min Exi Min Mat Fac Fac Fac Upp Upp Zhi Pro Fac Res Res Slots Evolved 16 | . . 2 . . . 2 2 2 2 . . . . 2 2 2 Power 1 | . . . . . . . . 1 . . . . . . . . Propulsion 7 | . . 1 . . . 1 1 1 . . . . . 1 1 1 Utility 8 | . . 1 . . . 1 1 . 2 . . . . 1 1 1 Weapon . | . . . . . . . . . . . . . . . . . Parts Attached 112 | 6 4 11 1 1 1 15 14 16 7 . . 5 1 9 11 10 Power 11 | 1 . 1 . . . 2 1 1 . . . 1 . 1 2 1 Engine 8 | 1 . 1 . . . 2 1 1 . . . . . 1 1 . Core 1 | . . . . . . . . . . . . . . . 1 . Reactor 2 | . . . . . . . . . . . . 1 . . . 1 Propulsion 30 | 2 1 4 . 1 . 7 1 2 1 . . 2 . 1 3 5 Treads 8 | 1 . 4 . 1 . 2 . . . . . . . . . . Leg . | . . . . . . . . . . . . . . . . . Wheel 5 | 1 1 . . . . 3 . . . . . . . . . . Hover 4 | . . . . . . . . 1 . . . . . . . 3 Flight 13 | . . . . . . 2 1 1 1 . . 2 . 1 3 2 Utility 44 | 1 2 4 . . . 4 5 7 6 . . 2 . 5 5 3 Device 21 | . . . . . . 1 3 6 2 . . . . 3 3 3 Storage 3 | 1 1 1 . . . . . . . . . . . . . . Processor 6 | . . 1 . . . 1 1 1 1 . . . . 1 . . Hackware 3 | . . . . . . . 1 . . . . 1 . 1 . . Protection 11 | . 1 2 . . . 2 . . 3 . . 1 . . 2 . Artifact . | . . . . . . . . . . . . . . . . . Weapon 27 | 2 1 2 1 . 1 2 7 6 . . . . 1 2 1 1 Energy Gun . | . . . . . . . . . . . . . . . . . Energy Cannon . | . . . . . . . . . . . . . . . . . Ballistic Gun 17 | 2 1 2 1 . 1 2 3 3 . . . . . 1 1 . Ballistic Cannon . | . . . . . . . . . . . . . . . . . Launcher 2 | . . . . . . . . . . . . . 1 . . 1 Special Weapon . | . . . . . . . . . . . . . . . . . Impact Weapon . | . . . . . . . . . . . . . . . . . Slashing Weapon 5 | . . . . . . . 4 1 . . . . . . . . Piercing Weapon 3 | . . . . . . . . 2 . . . . . 1 . . Special Melee Weapon . | . . . . . . . . . . . . . . . . . Unidentified Prototypes 5 | . . . . . . 1 . . . . . 3 . . . 1 Parts Lost 38 | . . 1 . . . 15 . . . 3 . . . 3 2 14 Power 5 | . . . . . . 2 . . . 1 . . . . . 2 Propulsion 14 | . . 1 . . . 7 . . . 1 . . . . . 5 Utility 13 | . . . . . . 2 . . . 1 . . . 3 2 5 Weapon 6 | . . . . . . 4 . . . . . . . . . 2 Highest Loss Streak 10 | . . 1 . . . 8 . . . 3 . . . 3 2 10 To Critical Strikes . | . . . . . . . . . . . . . . . . . Average Slot Usage (%) 84 | . 99 100 99 100 100 92 71 68 75 73 58 64 71 74 75 66 Engine 9 | . 14 11 11 11 11 8 7 13 11 10 5 3 . 5 4 2 Treads 9 | . 14 22 22 22 22 14 . . . . . . . . . . Wheel 6 | . 14 11 11 11 11 15 . . . . . . . . . . Flight 8 | . . . . . . . 15 15 16 16 11 13 17 21 19 17 Device 7 | . . . . . . 8 15 11 12 10 5 5 5 13 22 16 Storage 8 | . 14 11 11 11 11 9 7 6 5 5 5 5 5 5 4 2 Processor 7 | . . 1 11 11 11 9 7 6 11 11 11 11 11 6 4 4 Hackware 3 | . . . . . . . 6 6 5 5 5 8 11 11 9 7 Protection 6 | . 13 20 11 11 11 9 . . 3 5 5 5 5 . . . Ballistic Gun 11 | . 28 22 21 22 22 17 4 . . . . . . . . 3 Piercing Weapon 1 | . . . . . . . . 3 5 5 5 5 5 5 4 2 Naked Turns . | . . . . . . . . . . . . . . . . . Heaviest Build 76 | 14 29 59 54 54 55 57 61 61 62 62 54 59 67 67 72 76 Greatest Support 84 | 20 20 40 40 12 12 50 61 66 64 62 55 62 62 68 78 84 Greatest Overweight (x) 4 | . 2 4 4 4 4 4 . 1 . . . . 1 . 3 2 Average Overweight (x) . | . 1 2 3 4 4 1 . . . . . . . . . . Largest Inventory Capacity 20 | 8 15 20 20 20 20 20 20 20 20 20 20 20 20 20 20 20 Average Capacity 18 | 7 10 16 20 20 20 20 20 20 20 20 20 20 20 20 20 14 Most Carried 20 | 6 15 16 20 20 20 20 20 20 19 19 19 20 20 19 15 19 Average Carried 16 | 3 9 14 17 19 20 19 18 19 18 19 19 19 19 15 14 12 Final Capacity 20 | 8 15 20 20 20 20 20 20 20 20 20 20 20 20 20 20 5 Final Carried 20 | 6 15 16 20 20 20 14 18 20 19 19 19 20 20 15 14 4 Class Distribution -------------------- 69% | Mutant 7% | Hacker-Sprinter 5% | Hacker-Ninja 5% | Scout 3% | Commander-Ninja Dominant Class ---------------- Mutant | -10/Materials Mutant | -9/Materials Mutant | -9/Mines Mutant | -9/Exiles Mutant | -8/Mines Mutant | -8/Materials Mutant | -7/Factory Scout | -6/Factory Commander-Ninja | -5/Factory Mutant | -5/Upper Caves Mutant | -5/Upper Caves Mutant | -5/Zhirov Hacker-Mutant | -4/Proximity Caves Hacker-Ninja | -4/Factory Hacker-Ninja | -3/Research Hacker-Sprinter | -2/Research Resources | -11 -10 -9 -9 -9 -8 -8 -7 -6 -5 -5 -5 -5 -4 -4 -3 -2 ----------- Run | Yrd Mat Mat Min Exi Min Mat Fac Fac Fac Upp Upp Zhi Pro Fac Res Res Matter Collected 1747 | 219 205 249 74 . . 351 180 132 115 49 . . 94 . . 79 Remotely . | . . . . . . . . . . . . . . . . . Salvage Created 1958 | . 285 465 174 . . 433 184 75 . . . . 156 . 65 121 Parts 109 | . 25 28 8 . . 25 8 3 . . . . 3 . 1 8 Haulers Intercepted 1 | . 1 . . . . . . . . . . . . . . . Recyclers Shooed 2 | . . . . . . 1 . . . . . . . . . 1 Parts Field Recycled . | . . . . . . . . . . . . . . . . . Retrieved Matter . | . . . . . . . . . . . . . . . . . Parts Self-Destructed 2 | . . . . . . . . . . 2 . . . . . . Prevented 4 | . . . . . . . . . . 2 . . 2 . . . Kills | -11 -10 -9 -9 -9 -8 -8 -7 -6 -5 -5 -5 -5 -4 -4 -3 -2 ------- Run | Yrd Mat Mat Min Exi Min Mat Fac Fac Fac Upp Upp Zhi Pro Fac Res Res Combat Hostiles Destroyed 47 | . 9 12 4 . . 11 4 2 . . . . 2 . 1 2 Melee 3 | . . . . . . . 3 . . . . . . . . . Guns 41 | . 9 12 4 . . 11 1 2 . . . . . . 1 1 AOE 2 | . . . . . . . . . . . . . 1 . . 1 Classes Destroyed 12 | . 3 2 1 . . 1 1 1 . . . . 1 . . 2 Worker 1 | . . . . . . . . . . . . . . . . 1 Hauler 1 | . 1 . . . . . . . . . . . . . . . Recycler 1 | . . . . . . 1 . . . . . . . . . . Watcher 2 | . . 1 . . . 1 . . . . . . . . . . Swarmer 16 | . 6 4 . . . 5 1 . . . . . . . . . Cutter 1 | . . . . . . . . . . . . . . . . 1 Grunt 14 | . 3 4 3 . . 3 1 . . . . . . . . . Brawler 1 | . . . 1 . . . . . . . . . . . . . Duelist 1 | . . . . . . . 1 . . . . . . . . . Sentry 10 | . . 4 . . . 3 1 1 . . . . . . 1 . Hunter 2 | . . . . . . . . . . . . . 2 . . . Programmer 2 | . . . . . . . . 1 . . . . . . . 1 Best Kill Streak 7 | . 3 5 3 . . 7 2 1 . . . . 2 . 1 2 Combat Bots Only 6 | . 3 5 3 . . 6 2 1 . . . . 2 . 1 1 Max Kills in Single Turn 2 | . 1 1 1 . . 2 1 1 . . . . 1 . 1 1 Gunslinging 1 | . . . . . . 1 . . . . . . . . . . Exploded 1 | . . . . . . . . . . . . . 1 . . 1 Melee 1 | . . . . . . . 1 . . . . . . . . . Uniques/NPCs Destroyed . | . . . . . . . . . . . . . . . . . Combat | -11 -10 -9 -9 -9 -8 -8 -7 -6 -5 -5 -5 -5 -4 -4 -3 -2 -------- Run | Yrd Mat Mat Min Exi Min Mat Fac Fac Fac Upp Upp Zhi Pro Fac Res Res Hostile Shots Fired 663 | . 32 46 14 . . 221 39 26 . 65 3 . 14 2 18 183 Missed 252 | . 6 5 4 . . 75 18 12 . 36 2 . 8 2 6 78 Damage Taken 7145 | . 236 480 126 . . 1734 444 141 19 494 19 . 103 339 321 2689 Core 2089 | . 28 23 . . . 363 88 30 . 136 . . 12 40 . 1369 Absorbed by Shields 19 | . . . . . . . . . . . . . . . . 19 Redirected to Shielding 76 | . 5 4 . . . 67 . . . . . . . . . . Regen/Repaired (Parts) 16 | . . . . . . 16 . . . . . . . . . . Core Remaining (%) 86 | 100 88 . . . 94 34 87 96 . . . . 85 96 100 . Volleys Fired 132 | . 25 21 8 . . 43 3 8 . . . . 4 . 8 12 Largest 2 | . 2 2 2 . . 2 2 2 . . . . 1 . 1 2 Hottest 71 | . 40 46 46 . . 51 53 53 . . . . 43 . 28 71 Shots Fired 235 | . 50 42 16 . . 83 6 11 . . . . 4 . 8 15 Gun 228 | . 50 42 16 . . 83 6 11 . . . . . . 8 12 Cannon . | . . . . . . . . . . . . . . . . . Launcher 7 | . . . . . . . . . . . . . 4 . . 3 Special . | . . . . . . . . . . . . . . . . . Kinetic 228 | . 50 42 16 . . 83 6 11 . . . . . . 8 12 Thermal . | . . . . . . . . . . . . . . . . . Explosive . | . . . . . . . . . . . . . . . . . Electromagnetic 7 | . . . . . . . . . . . . . 4 . . 3 Robot Hit Streak 17 | . 7 9 9 . . 16 7 9 . . . . 4 . 12 17 Robot Miss Streak 5 | . 3 4 3 . . 4 1 2 . . . . 1 . 2 5 Penetration Max 1 | . . . . . . 1 . . . . . . . . . . Secondary Targets 5 | . 1 1 . . . 3 . . . . . . . . . . Max Gunslinging Chain 1 | . 1 1 . . . 1 . . . . . . . . . . Shots Hit Robots 186 | . 35 29 11 . . 59 16 10 . . . . 3 . 9 14 Core Hits 123 | . 15 21 6 . . 26 10 9 . . . . 3 . 10 23 Critical Kills 1 | . . . . . . 1 . . . . . . . . . . Critical Parts Destroyed 3 | . 2 1 . . . . . . . . . . . . . . Critical Strikes 5 | . 2 1 . . . 1 1 . . . . . . . . . Destroy 4 | . 2 1 . . . 1 . . . . . . . . . . Sever 1 | . . . . . . . 1 . . . . . . . . . Melee Attacks 89 | . . . . . . . 29 10 8 . 2 . . 23 7 10 Impact . | . . . . . . . . . . . . . . . . . Slashing 33 | . . . . . . . 29 4 . . . . . . . . Piercing 56 | . . . . . . . . 6 8 . 2 . . 23 7 10 Sneak Attacks . | . . . . . . . . . . . . . . . . . Combat Hostiles . | . . . . . . . . . . . . . . . . . Follow-up Attacks . | . . . . . . . . . . . . . . . . . Damage Inflicted 3844 | . 416 424 201 . . 898 586 241 . . . . 247 . 218 613 Guns 2772 | . 416 411 201 . . 893 138 241 . . . . . . 180 292 Cannons . | . . . . . . . . . . . . . . . . . Explosions 543 | . . . . . . . . . . . . . 247 . . 296 Melee 486 | . . . . . . . 448 . . . . . . . 38 . Ramming 43 | . . 13 . . . 5 . . . . . . . . . 25 Kinetic 2772 | . 416 411 201 . . 893 138 241 . . . . . . 180 292 Thermal 72 | . . . . . . . . . . . . . 72 . . . Explosive 193 | . . . . . . . . . . . . . . . . 193 Electromagnetic 278 | . . . . . . . . . . . . . 175 . . 103 Impact . | . . . . . . . . . . . . . . . . . Slashing 448 | . . . . . . . 448 . . . . . . . . . Piercing 38 | . . . . . . . . . . . . . . . 38 . Highest Corruption 10 | . 1 . . . . 3 . . . . . . . 8 . 10 Average Corruption 4 | . 1 . . . . 2 . . . . . . . 8 . 5 Corruption Purged . | . . . . . . . . . . . . . . . . . Corruption Blocked . | . . . . . . . . . . . . . . . . . Effects 36 | . . . . . . 19 . . . . . . . 9 . 8 Message Errors 12 | . . . . . . 7 . . . . . . . 3 . 2 Matter Fused 2 | . . . . . . 1 . . . . . . . . . 1 Heat Flow Errors 7 | . . . . . . 5 . . . . . . . 2 . . Energy Discharges 5 | . . . . . . 4 . . . . . . . . . 1 Parts Rejected 1 | . . . . . . . . . . . . . . . . 1 Parts Fused 1 | . . . . . . . . . . . . . . . . 1 Data Loss (minor) 4 | . . . . . . 1 . . . . . . . 2 . 1 Data Loss (major) 2 | . . . . . . 1 . . . . . . . 1 . . Alerts 1 | . . . . . . . . . . . . . . 1 . . Misdirections 1 | . . . . . . . . . . . . . . . . 1 Overload Shots . | . . . . . . . . . . . . . . . . . Overflow Damage 42 | . . . . . . . 11 . . . . . . . . 31 Projectiles . | . . . . . . . . . . . . . . . . . Explosions 31 | . . . . . . . . . . . . . . . . 31 Melee 11 | . . . . . . . 11 . . . . . . . . . Knockbacks . | . . . . . . . . . . . . . . . . . Impact . | . . . . . . . . . . . . . . . . . Kinetic . | . . . . . . . . . . . . . . . . . Secondary . | . . . . . . . . . . . . . . . . . Self-Inflicted Damage 95 | . . 6 . . . . . . . . . . 3 . . 86 Shots 5 | . . . . . . . . . . . . . 1 . . 4 Rammed 6 | . . 1 . . . 3 . . . . . . . . . 2 Targets Rammed 6 | . . 1 . . . 3 . . . . . . . . . 2 Kicked . | . . . . . . . . . . . . . . . . . Crushed . | . . . . . . . . . . . . . . . . . Highest Temperature 245 | . . 45 10 . . 245 11 . . . . . 20 180 5 24 Average Temperature 37 | . . 13 5 . . 61 6 . . . . . 9 91 3 10 Received Heat Transfer 705 | . 66 150 57 . . 246 48 18 . 12 . . . . 45 63 Siege Activations . | . . . . . . . . . . . . . . . . . Robots Corrupted 1 | . . . . . . . . . . . . . 1 . . . Combat Hostiles 1 | . . . . . . . . . . . . . 1 . . . Parts Fried 3 | . . . . . . . . . . . . . 3 . . . Impact Corruptions . | . . . . . . . . . . . . . . . . . Robots Melted . | . . . . . . . . . . . . . . . . . Combat Hostiles . | . . . . . . . . . . . . . . . . . Parts Melted . | . . . . . . . . . . . . . . . . . Heat Transferred 50 | . . . . . . . . . . . . . 50 . . . Parts Sabotaged . | . . . . . . . . . . . . . . . . . Parts Stolen . | . . . . . . . . . . . . . . . . . Parts Stripped . | . . . . . . . . . . . . . . . . . Power Chain Reactions 2 | . . . . . . . . . . . . . 1 . . 1 Alert | -11 -10 -9 -9 -9 -8 -8 -7 -6 -5 -5 -5 -5 -4 -4 -3 -2 ------- Run | Yrd Mat Mat Min Exi Min Mat Fac Fac Fac Upp Upp Zhi Pro Fac Res Res Peak Influence 277 | . 225 277 215 . 32 187 72 125 75 . . . . 39 65 144 Initial 110 | . . 21 110 . . 12 9 31 44 . . . . 31 . 36 Average 59 | . 53 109 167 . 25 43 34 69 47 . . . . 23 13 63 Maximum Alert Level 1 | . 1 1 1 . . . . . . . . . . . . . Low Security (%) 94 | 100 90 88 50 . 100 100 100 100 100 . . . . 100 100 100 Level 1 5 | . 9 11 49 . . . . . . . . . . . . . Level 2 . | . . . . . . . . . . . . . . . . . Level 3 . | . . . . . . . . . . . . . . . . . Level 4 . | . . . . . . . . . . . . . . . . . Level 5 . | . . . . . . . . . . . . . . . . . High Security . | . . . . . . . . . . . . . . . . . Max Security . | . . . . . . . . . . . . . . . . . Squads Dispatched 32 | . 1 1 1 . . 7 . 3 5 . . . . 3 1 10 Investigation 7 | . 1 . . . . 3 . 1 . . . . . 2 . . Extermination 5 | . . . . . . . . 2 1 . . . . 1 . 1 Reinforcement 12 | . . 1 . . . 4 . . 1 . . . . . 1 5 Assault 2 | . . . 1 . . . . . . . . . . . . 1 Garrison 6 | . . . . . . . . . 3 . . . . . . 3 Intercept . | . . . . . . . . . . . . . . . . . Searches Triggered . | . . . . . . . . . . . . . . . . . Construction Impeded 1 | . . . . . . . . . . . . . . . . 1 Haulers Reinforced 1 | . . . . . . . . . 1 . . . . . . . Active Scanning Responses . | . . . . . . . . . . . . . . . . . Cargo Convoy Interrupts . | . . . . . . . . . . . . . . . . . Stealth | -11 -10 -9 -9 -9 -8 -8 -7 -6 -5 -5 -5 -5 -4 -4 -3 -2 --------- Run | Yrd Mat Mat Min Exi Min Mat Fac Fac Fac Upp Upp Zhi Pro Fac Res Res Distress Signals 6 | . 1 1 . . . 2 . . . . . . . . . 2 Communications Jammed . | . . . . . . . . . . . . . . . . . Distress Signals . | . . . . . . . . . . . . . . . . . Times Spotted 153 | . 17 21 5 . 2 27 4 2 . 19 1 . 7 2 3 43 Peak Tracking Total 17 | . 6 6 3 . 3 9 3 1 1 15 2 . 6 2 2 17 Tactical Retreats 13 | . . . 1 . . 3 . . . 5 . . . . . 4 Traps | -11 -10 -9 -9 -9 -8 -8 -7 -6 -5 -5 -5 -5 -4 -4 -3 -2 ------- Run | Yrd Mat Mat Min Exi Min Mat Fac Fac Fac Upp Upp Zhi Pro Fac Res Res Traps Triggered 7 | . 1 . . . . 2 2 . . . . . . . . 2 Indirectly . | . . . . . . . . . . . . . . . . . Trap Hack Attempts . | . . . . . . . . . . . . . . . . . Triggered . | . . . . . . . . . . . . . . . . . Disarmed . | . . . . . . . . . . . . . . . . . Reprogrammed . | . . . . . . . . . . . . . . . . . Reused . | . . . . . . . . . . . . . . . . . Traps Extracted . | . . . . . . . . . . . . . . . . . Installed . | . . . . . . . . . . . . . . . . . Triggered 1 | . . . . . . . . . . 1 . . . . . . Most Traps Carried 5 | . . . 5 5 2 2 . . . . . . . . . . Machines | -11 -10 -9 -9 -9 -8 -8 -7 -6 -5 -5 -5 -5 -4 -4 -3 -2 ---------- Run | Yrd Mat Mat Min Exi Min Mat Fac Fac Fac Upp Upp Zhi Pro Fac Res Res Machines Disabled 4 | . . 1 . . . 2 . . . . . . . . . 1 Max in Single Turn 1 | . . 1 . . . 1 . . . . . . . . . 1 Garrison Access 2 | . . . . . . . 2 . . . . . . . . . Machines Repaired . | . . . . . . . . . . . . . . . . . Machines Dismantled . | . . . . . . . . . . . . . . . . . Machines Sabotaged . | . . . . . . . . . . . . . . . . . Overloaded Fab Kills . | . . . . . . . . . . . . . . . . . Hacking | -11 -10 -9 -9 -9 -8 -8 -7 -6 -5 -5 -5 -5 -4 -4 -3 -2 --------- Run | Yrd Mat Mat Min Exi Min Mat Fac Fac Fac Upp Upp Zhi Pro Fac Res Res Machines Accessed 59 | . 6 5 . 5 . 7 7 12 1 . . 9 . 3 1 3 Terminals 32 | . 6 5 . . . 4 3 7 1 . . . . 3 1 2 Fabricators 3 | . . . . . . . . 2 . . . . . . . 1 Repair Stations 2 | . . . . . . 1 . 1 . . . . . . . . Recycling Units 3 | . . . . . . 1 1 1 . . . . . . . . Scanalyzers 2 | . . . . . . . 1 1 . . . . . . . . Garrison Access 3 | . . . . . . 1 2 . . . . . . . . . Total Hacks 191 | . 12 10 . 50 . 20 10 28 1 . . 48 . 7 1 4 Successful 147 | . 5 8 . 50 . 7 5 17 1 . . 48 . 2 1 3 Failed 44 | . 7 2 . . . 13 5 11 . . . . . 5 . 1 Catastrophic 6 | . . 1 . . . 1 . 2 . . . . . 2 . . Database Lockouts . | . . . . . . . . . . . . . . . . . Manual 60 | . 12 8 . 1 . 13 2 14 1 . . . . 7 . 2 Terminals 71 | . 12 10 . . . 13 5 19 1 . . . . 7 1 3 Fabricators 6 | . . . . . . . . 5 . . . . . . . 1 Repair Stations 4 | . . . . . . 2 . 2 . . . . . . . . Recycling Units 4 | . . . . . . 2 1 1 . . . . . . . . Scanalyzers 2 | . . . . . . . 1 1 . . . . . . . . Garrison Access 6 | . . . . . . 3 3 . . . . . . . . . Terminal Hacks 117 | . . 5 . 50 . 1 2 7 1 . . 48 . . 1 2 Record 89 | . . . . 49 . . . 3 . . . 36 . . 1 . Part Schematic 4 | . . . . . . . . . . . . 4 . . . . Robot Analysis 4 | . . . . . . . . . . . . 4 . . . . Prototype ID Bank 4 | . . . . . . . . . . . . 4 . . . . Open DSF 3 | . . . . . . . 1 1 . . . . . . . 1 Level Access Points 1 | . . . . . . . . 1 . . . . . . . . Emergency Access Points 2 | . . 2 . . . . . . . . . . . . . . Alert Level 5 | . . 1 . . . 1 . 1 1 . . . . . . 1 Locate Traps 1 | . . . . . . . . 1 . . . . . . . . Registered Components 1 | . . . . . . . 1 . . . . . . . . . Zone Layout 2 | . . 2 . . . . . . . . . . . . . . Derelict Proto ID Bank 1 | . . . . 1 . . . . . . . . . . . . Fabricator Hacks 2 | . . . . . . . . 2 . . . . . . . . Network Status 1 | . . . . . . . . 1 . . . . . . . . Build 1 | . . . . . . . . 1 . . . . . . . . Repair Station Hacks 4 | . . . . . . 2 . 2 . . . . . . . . Scan Component 2 | . . . . . . 1 . 1 . . . . . . . . Repair 2 | . . . . . . 1 . 1 . . . . . . . . Recycling Unit Hacks 1 | . . . . . . 1 . . . . . . . . . . Report Inventory 1 | . . . . . . 1 . . . . . . . . . . Scanalyzer . | . . . . . . . . . . . . . . . . . Garrison Access Hacks 2 | . . . . . . . 2 . . . . . . . . . Seal Access 2 | . . . . . . . 2 . . . . . . . . . Unauthorized Hacks 21 | . 5 3 . . . 3 1 6 . . . . . 2 . 1 Terminals 18 | . 5 3 . . . 3 1 4 . . . . . 2 . . Botnet 18 | . 5 3 . . . 3 1 4 . . . . . 2 . . Fabricators 3 | . . . . . . . . 2 . . . . . . . 1 Liberate 3 | . . . . . . . . 2 . . . . . . . 1 Repair Stations . | . . . . . . . . . . . . . . . . . Recycling Units . | . . . . . . . . . . . . . . . . . Scanalyzers . | . . . . . . . . . . . . . . . . . Garrison Access . | . . . . . . . . . . . . . . . . . Data Cores Recovered . | . . . . . . . . . . . . . . . . . Used . | . . . . . . . . . . . . . . . . . Hacking Detections 36 | . 4 5 . . . 6 5 9 1 . . . . 3 1 2 Full Trace Events 7 | . 1 . . . . 3 . 1 . . . . . 2 . . Feedback Events 1 | . . . . . . 1 . . . . . . . . . . Corruption 1 | . . . . . . 1 . . . . . . . . . . Feedback Blocked . | . . . . . . . . . . . . . . . . . Robot Schematics Acquired . | . . . . . . . . . . . . . . . . . Robots Built 4 | . . . . . . . . 4 . . . . . . . . Authchips . | . . . . . . . . . . . . . . . . . Time 67 | . . . . . . . . 67 . . . . . . . . Total Robot Build Rating 16 | . . . . . . . . 16 . . . . . . . . Part Schematics Acquired 4 | . . . . . . . . . . . . 4 . . . . Parts Built . | . . . . . . . . . . . . . . . . . Authchips . | . . . . . . . . . . . . . . . . . Time . | . . . . . . . . . . . . . . . . . Total Part Build Rating . | . . . . . . . . . . . . . . . . . Parts Repaired 1 | . . . . . . 1 . . . . . . . . . . Time 64 | . . . . . . 26 . 38 . . . . . . . . Parts Recycled . | . . . . . . . . . . . . . . . . . Recycled Matter . | . . . . . . . . . . . . . . . . . Retrieved Matter . | . . . . . . . . . . . . . . . . . Retrieved Components . | . . . . . . . . . . . . . . . . . Parts Scanalyzed . | . . . . . . . . . . . . . . . . . Part Schematics Acquired . | . . . . . . . . . . . . . . . . . Parts Damaged . | . . . . . . . . . . . . . . . . . Bothacking | -11 -10 -9 -9 -9 -8 -8 -7 -6 -5 -5 -5 -5 -4 -4 -3 -2 ------------ Run | Yrd Mat Mat Min Exi Min Mat Fac Fac Fac Upp Upp Zhi Pro Fac Res Res Used RIF Installer . | . . . . . . . . . . . . . . . . . Robots Hacked . | . . . . . . . . . . . . . . . . . Non-combat . | . . . . . . . . . . . . . . . . . Combat . | . . . . . . . . . . . . . . . . . Robot Hacks Applied . | . . . . . . . . . . . . . . . . . Relay Couplers Released . | . . . . . . . . . . . . . . . . . Fabnet Peak Effective % . | . . . . . . . . . . . . . . . . . Robots Rewired . | . . . . . . . . . . . . . . . . . Allies Hacked . | . . . . . . . . . . . . . . . . . Hacks Repelled . | . . . . . . . . . . . . . . . . . Allies | -11 -10 -9 -9 -9 -8 -8 -7 -6 -5 -5 -5 -5 -4 -4 -3 -2 -------- Run | Yrd Mat Mat Min Exi Min Mat Fac Fac Fac Upp Upp Zhi Pro Fac Res Res Total Allies 7 | . . . 1 . . . . 6 . . . . . . . . Largest Group 4 | . . . 1 1 1 1 . 4 4 . . . . . . . Highest-Rated Group 82 | . . . 31 31 31 31 . 82 48 . . . . . . . Highest-Rated Ally 41 | . . . 31 31 31 31 . 41 12 . . . . . . . Total Orders . | . . . . . . . . . . . . . . . . . Ally Attacks 33 | . . . . . 5 3 . 8 17 . . . . . . . Total Damage 655 | . . . . . 86 62 . 327 180 . . . . . . . Kills 5 | . . . . . 1 . . 3 1 . . . . . . . Allies Corrupted 1 | . . . . . . . . 1 . . . . . . . . Allies Melted . | . . . . . . . . . . . . . . . . . Intel | -11 -10 -9 -9 -9 -8 -8 -7 -6 -5 -5 -5 -5 -4 -4 -3 -2 ------- Run | Yrd Mat Mat Min Exi Min Mat Fac Fac Fac Upp Upp Zhi Pro Fac Res Res Robot Analysis Total 4 | . . . . . . . . . . . . 4 . . . . Derelict Logs Recovered 4 | . . . 1 . . . . . . 1 2 . . . . . Drone Launches . | . . . . . . . . . . . . . . . . . Drone Recoveries . | . . . . . . . . . . . . . . . . . Exploration | -11 -10 -9 -9 -9 -8 -8 -7 -6 -5 -5 -5 -5 -4 -4 -3 -2 ------------- Run | Yrd Mat Mat Min Exi Min Mat Fac Fac Fac Upp Upp Zhi Pro Fac Res Res Turns Passed 7602 | 65 627 628 409 603 323 1299 778 797 502 171 100 77 115 405 174 529 Spaces Moved 7171 | 42 428 360 226 399 176 548 786 1029 496 460 240 169 259 502 239 812 Core 68 | 5 . . . . . . . . . . . . . . . 63 Treads 101 | 8 44 22 10 . . 17 . . . . . . . . . . Legs . | . . . . . . . . . . . . . . . . . Wheels 2056 | 29 384 338 216 399 176 514 . . . . . . . . . . Hover 34 | . . . . . . . . . . . . . . . . 34 Flight 4912 | . . . . . . 17 786 1029 496 460 240 169 259 502 239 715 Fastest Speed 26 | 50 100 120 150 150 150 50 39 34 37 37 39 34 34 29 26 28 Average Speed 66 | 105 116 133 153 150 150 122 49 37 37 37 39 37 35 29 32 31 Slowest Speed 305 | 160 240 240 240 150 150 305 50 117 39 39 39 39 114 29 236 172 Overloaded Moves . | . . . . . . . . . . . . . . . . . Propulsion Burnouts . | . . . . . . . . . . . . . . . . . Robots Hopped 23 | . . . . . . . 9 4 3 . . . . . . 7 Cave-ins Triggered 1 | . . . . . . . . . . . . . . 1 . . Teleports 1 | . . . . . . . . . . . . . . . . 1 Exploration Rate (%) 37 | 4 58 37 55 73 45 43 25 27 11 66 44 62 38 16 10 28 Regions Visited 16 Branch Regions 7 Pre-discovered Areas 4 | . . . . 1 . . . . . . . 3 . . . . Known Exits Taken 12 | . . 1 1 1 1 1 1 1 1 1 1 1 1 . . . Unknown Exits Taken 4 | 1 1 . . . . . . . . . . . . 1 1 . Scrap Searched 4 | . . . 1 . . . . . . 2 . . 1 . . . Spaces Dug 65 | . . . . . . . 8 9 8 . 2 . . 23 5 10 Terrain Destroyed 125 | . . . . . . . 8 9 8 . 2 . 7 23 5 63 Melee 65 | . . . . . . . 8 9 8 . 2 . . 23 5 10 Projectile . | . . . . . . . . . . . . . . . . . AOE 60 | . . . . . . . . . . . . . 7 . . 53 Terrain Rammed . | . . . . . . . . . . . . . . . . . Walls Destroyed . | . . . . . . . . . . . . . . . . . Machines Disabled . | . . . . . . . . . . . . . . . . . Actions | -11 -10 -9 -9 -9 -8 -8 -7 -6 -5 -5 -5 -5 -4 -4 -3 -2 --------- Run | Yrd Mat Mat Min Exi Min Mat Fac Fac Fac Upp Upp Zhi Pro Fac Res Res Total 9594 | 59 511 473 275 406 235 1093 1106 1411 793 459 241 182 277 715 314 1044 Wait 1938 | 6 37 70 29 . 58 469 258 316 282 . . 1 13 179 40 180 Move 7112 | 41 427 360 225 398 175 547 768 1020 489 459 239 168 258 501 238 799 Hop 21 | . . . . . . . 8 4 3 . . . . . . 6 Pick Up 79 | 6 12 3 8 2 . 9 12 13 2 . . 3 . . 3 6 Fast Attach 38 | 6 1 2 . . 1 7 4 7 1 . . 4 . . 4 1 Attach 55 | . . 2 1 1 . 6 9 8 3 . . . 1 8 6 10 Detach 24 | . . 1 . . . 1 6 8 1 . . . 1 3 2 1 Swap 21 | . 3 7 . . . 2 1 1 3 . . 2 . 1 1 . Drop 75 | . 6 7 4 5 1 6 8 16 1 . . 4 . . 5 12 Fire 132 | . 25 21 8 . . 43 3 8 . . . . 4 . 8 12 Melee 89 | . . . . . . . 29 10 8 . 2 . . 23 7 10 Ram 2 | . . . . . . . . . . . . . . . . 2 Kick . | . . . . . . . . . . . . . . . . . Crush 3 | . . . . . . 3 . . . . . . . . . . Escape Stasis 5 | . . . . . . . . . . . . . . . . 5 Rewire . | . . . . . . . . . . . . . . . . . Trap . | . . . . . . . . . . . . . . . . . Miscellaneous . | . . . . . . . . . . . . . . . . . Route ------- -11/Scrapyard -10/Materials (discovered 2 exits: *Mat / [*Min]) -9/Materials (discovered 2 exits: *Min / *Sto) -9/Mines (discovered 2 exits: *Mat / *Exi) -9/Exiles -8/Mines -8/Materials -7/Factory (discovered 2 exits: *Fac / *Low) -6/Factory (discovered 4 exits: *Fac x4) -5/Factory -5/Upper Caves -5/Upper Caves -5/Zhirov -4/Proximity Caves -4/Factory -3/Research -2/Research History --------- Turn | Location | Event 35 | -11/Scrapyard | Discovered new exit (range 15) 66 | -11/Scrapyard | Entered Materials 82 | -10/Materials | Discovered new exit (range 13) 315 | -10/Materials | Build established: Mutant 641 | -10/Materials | Discovered new exit (range 11) 693 | -10/Materials | Entered another Materials area 693 | -9/Materials | Evolved 2 slots: Propulsion x1, Utility x1 1085 | -9/Materials | Discovered new exit (range 12) 1153 | -9/Materials | Discovered new exit (range 14) 1291 | -9/Materials | Identified exit to Storage 1320 | -9/Materials | Identified exit to Mines 1321 | -9/Materials | Entered Mines 1336 | -9/Mines | Learned location of 1 exit from Proximity Caves 1349 | -9/Mines | Met a Derelict bent on vengeance 1595 | -9/Mines | Found a hidden stash of uninstalled traps 1624 | -9/Mines | Discovered new exit (range 10) 1636 | -9/Mines | Identified exit to Materials 1689 | -9/Mines | Met a Derelict testing a Signal Generator 1699 | -9/Mines | Found Signal Generator 1724 | -9/Mines | Deemed a non-threat by the Exiles lab entrance 1724 | -9/Mines | Discovered new exit (range 5) 1729 | -9/Mines | Identified exit to Exiles 1730 | -9/Mines | Entered Exiles 1730 | -9/Exiles | Accompanied by 1 ally 1765 | -9/Exiles | Met 8R-AWN 1790 | -9/Exiles | Met EX-HEX 1876 | -9/Exiles | Met EX-DEC 1930 | -9/Exiles | Learned location of Zion (-7) 1972 | -9/Exiles | Met EX-BIN 2126 | -9/Exiles | Aligned with FarCom system 2128 | -9/Exiles | Given EX-Vault access code 2164 | -9/Exiles | Opened EX-Vault 2179 | -9/Exiles | Found Flying Fortress v7 2211 | -9/Exiles | Warned to stay clear of 0b10 Research branches 2319 | -9/Exiles | Discovered new exit (range 11) 2331 | -9/Exiles | Identified exit to Mines 2333 | -9/Exiles | Left Exiles lab with Flying Fortress v7 2333 | -9/Exiles | Entered Mines 2333 | -8/Mines | Accompanied by 1 ally 2624 | -8/Mines | Discovered exit to Materials (range 13) 2656 | -8/Mines | Entered Materials 2656 | -8/Materials | Accompanied by 1 ally 2656 | -8/Materials | Evolved 2 slots: Propulsion x1, Utility x1 2909 | -8/Materials | Lost 6 parts (1p3n2w) 3304 | -8/Materials | Repaired Com. Wheel 3944 | -8/Materials | Core integrity fell below 50% 3951 | -8/Materials | Discovered new exit (range 10) 3955 | -8/Materials | Identified exit to Factory 3955 | -8/Materials | Entered Factory 3955 | -7/Factory | Evolved 2 slots: Propulsion x1, Utility x1 3974 | -7/Factory | Lost 8 parts (1p4n1u2w) 4681 | -7/Factory | Discovered new exit (range 15) 4688 | -7/Factory | Identified exit to Lower Caves 4731 | -7/Factory | Discovered new exit (range 4) 4732 | -7/Factory | Identified exit to Factory 4733 | -7/Factory | Entered another Factory area 4733 | -6/Factory | Evolved 2 slots: Power x1, Propulsion x1 5120 | -6/Factory | Found Unknown Protection 5384 | -6/Factory | Identified exit to Factory 5497 | -6/Factory | Build established: Scout 5520 | -6/Factory | Fabricated S-27 Virus? 5530 | -6/Factory | Entered another Factory area 5530 | -5/Factory | Accompanied by 4 allies 5530 | -5/Factory | Evolved 2 slots: Utility x2 5767 | -5/Factory | Garrison activated, responded to threat 5784 | -5/Factory | Discovered new exit (range 5) 5785 | -5/Factory | Identified exit to Upper Caves 5914 | -5/Factory | Identified Powered Armor 6032 | -5/Factory | Entered Upper Caves 6037 | -5/Upper Caves | Learned Factory emergency access door positions 6152 | -5/Upper Caves | Attracted the attention of an 0b10 outpost 6158 | -5/Upper Caves | Spotted B-75 Beast 6202 | -5/Upper Caves | Discovered new exit (range 5) 6203 | -5/Upper Caves | Identified exit to Upper Caves 6203 | -5/Upper Caves | Entered another Upper Caves area 6215 | -5/Upper Caves | Encountered a Warlord checkpoint 6216 | -5/Upper Caves | Learned Factory trap positions 6218 | -5/Upper Caves | Lost 3 parts (1p1n1u) 6299 | -5/Upper Caves | Discovered new exit (range 13) 6302 | -5/Upper Caves | Identified exit to Zhirov 6303 | -5/Upper Caves | Entered Zhirov 6303 | -5/Zhirov | Discovered new exit (range 3) 6311 | -5/Zhirov | Met Zhirov 6318 | -5/Zhirov | Learned location of Quarantine (-2) 6318 | -5/Zhirov | Learned location of Testing (-3) 6318 | -5/Zhirov | Learned location of Command (-1) 6327 | -5/Zhirov | Zhirov requested help retrieving the SGEMP Prototype 6334 | -5/Zhirov | Found Alien Artifact 6334 | -5/Zhirov | Identified Integrated Reactor 6334 | -5/Zhirov | Installed Integrated Reactor, increased core energy generation (+10) 6341 | -5/Zhirov | Found Alien Artifact 6380 | -5/Zhirov | Identified exit to Proximity Caves 6380 | -5/Zhirov | Entered Proximity Caves 6381 | -4/Proximity Caves | Identified exit to Factory 6495 | -4/Proximity Caves | Entered Factory 6495 | -4/Factory | Evolved 2 slots: Propulsion x1, Utility x1 6496 | -4/Factory | Loaded intel: 84 trap records 6648 | -4/Factory | Crushed by falling debris 6679 | -4/Factory | Lost 3 parts (3u) 6875 | -4/Factory | Discovered new exit (range 14) 6900 | -4/Factory | Build established: Hacker-Ninja 6900 | -4/Factory | Entered Research 6900 | -3/Research | Evolved 2 slots: Propulsion x1, Utility x1 6993 | -3/Research | Discovered new exit (range 10) 7074 | -3/Research | Entered another Research area 7074 | -2/Research | Evolved 2 slots: Propulsion x1, Utility x1 7101 | -2/Research | Identified exit to DSF 7347 | -2/Research | Build established: Hacker-Sprinter 7392 | -2/Research | Garrison activated, responded to threat 7410 | -2/Research | Identified Transdimensional Reconstructor 7410 | -2/Research | Warped through subspace 7440 | -2/Research | Lost 3 parts (1p1n1w) 7492 | -2/Research | Spotted B-90 Cyclops 7555 | -2/Research | Core integrity fell below 50% 7569 | -2/Research | System corruption reached 10% 7581 | -2/Research | Assembled infested ambush trap array 7593 | -2/Research | Spotted B-90 Cyclops 7595 | -2/Research | Core integrity fell below 20% 7603 | -2/Research | Destroyed by B-90 Cyclops with Nova Cannon Last Messages --------------- Adv. ECM Suite destroyed. Fabricator disabled. K-01 Serf collects debris. Triggered Ambush Trap. Disabled G-73 Enforcer is pushed from a hatch in the floor. Disabled L-61 Swordsman is pushed from a hatch in the floor. Disabled S-43 Plague is pushed from a hatch in the floor. Disabled E-15 Imp is pushed from a hatch in the floor. Disabled G-73 Enforcer is pushed from a hatch in the floor. as-07141 emerges from a hatch in the floor. as-67635 emerges from a hatch in the floor. as-80307 emerges from a hatch in the floor. ALERT: Infestation has breached Complex 0b10, dispatching Demolisher response squad. Hacking Suite destroyed. Slug penetrates S-43 Plague. Imp. VTOL Module destroyed. Knocked back. VZ#6ZJC::OCTD7IEDA QSD B-90 Cyclops activates siege mode. Map ----- +----------------------------------------------------+ | ########## #? #??????? | | [ % # # #? #??????? | | ##+############ # ?# # #??????? | | ??????????????# # = ?# # #??????? | | ??????????????# # ??+ / #??????? | | ??????????????+ + ??### ^# ]]#??????? | | ??????????????# # ?? #?# # ] #??????? | | ??????????????# # ? ??# ###? #??????? | | ??????????????# #? ???# #??? #??????? | | ??????????????# #? ?????# #????###??????? | | ??????????????# ###/######?# g #?????????????? | | ??????????????# # p #?#g #??????#??????? | | ??????????????# gp ! ### # !! #??????? | | ??????????????# g# / w + !! #??????? | | ??????????????# #"""" #### # ! #??????? | | ??????????????# #"""" #??# # #??????? | | ??????????????# ##"""" #??# #?######??????? | | ??????????##### p"#"""" #??# #?????????????? | | ????####### %"# #??# #???BB????????? | | ???+ "# #??# ???BB????????? | | ????####+## ###########??# ?????????????? | | ??????????# !!# #?????? ????h???????? | | ??????????# !!# #?????? ????????????? | | ??????????+ # #?????? !????????????? | | ??????????# % ; #?????? !h???????????? | | ??????????# ; @#?????? !!???????????? | | ??????????##BB;; ; k/ ????????????? | | ???????????#BB## H;#+##### ! ???????????? | | ???????????##??# ??????? ???????????? | | ???????????????# ???????? ??????????? | | ???????????????# ?????????#########???????????? | | ???????????????#####?????????????????????????????? | | ?????????????????????????????????????????????????? | | ?????????????????????????????????????????????????? | | ?????????????????????????????????????????????????? | | ?????????????????????????????????????????????????? | | ?????????????????????????????????????????????????? | | ?????????????????????????????????????????????????? | | ?????????????????????????????????????????????????? | | ?????????????????????????????????????????????????? | | ?????????????????????????????????????????????????? | | ?????????????????????????????????????????????????? | | ?????????????????????????????????????????????????? | | ?????????????????????????????????????????????????? | | ?????????????????????????????????????????????????? | | ?????????????????????????????????????????????????? | | ?????????????????????????????????????????????????? | | ?????????????????????????????????????????????????? | | ?????????????????????????????????????????????????? | | ?????????????????????????????????????????????????? | +----------------------------------------------------+ Best States ------------- Heat Dissipation 49 Energy Generation 47 Energy Capacity 1500 Matter Stores 300 Matter Capacity 300 Sight Range 16 Terrain Scan Range 16 Terrain Scan Density 210 ECM Strength 2 Cloak Strength 3 Additional Mass Support 9 Armor Coverage 300 Core Shielding 20 Evasion (%) 74 Recoil Reduction 2 Offensive Hacking 22 Defensive Hacking 14 Item Schematics ----------------- Assault Drone Bay | -5/Zhirov | Free Exp. Heat Sink | -5/Zhirov | Free Exp. Optical Array | -5/Zhirov | Free Imp. Arc Thrower | -5/Zhirov | Free Robot Schematics ------------------ None Fabricated ------------ S-27 Virus | x4 | -6/Factory | Preloaded Alien Tech Used ----------------- Integrated Reactor Transdimensional Reconstructor Achievements -------------- Fist Fight My Command Is Your Wish root@ Challenges ------------ None Game ------ Seed NodeBottomlessGun Manual? 0 Play Time 02:27:05 Cumulative 31.8 hours Start 2024.05.18 @ 23:32:19 End 2024.05.19 @ 02:00:43 Sessions 1 Manual Loads 0 Difficulty Rogue Special Mode None Game No. 42 Rogue 42 Adventurer 0 Explorer 0 Win Type - Total 0 Types 0/0/0/0/0/0/0/0/0 Lore% 30 Gallery% 40 Achievement% 32 Wizard Run 0 Options --------- Layout 0 ASCII 0 Keyboard 0 Movement Numpad Keybinds 0 Fullscreen 2 Font 24/Smallcaps Map View 76x50 Zoom Use 0% Tactical HUD 0 Map Filters NONE Filters NONE Steam 1 RUN: 7f047933-a1f6-4705-9031-de761e1503b4